Workbook

Sheet МЕНЮ-РАСК 1-3 (hidden)
A1: Утверждаю | H1: Согласовано
A2: Директор ООО"АБК - Пэймент" | H2: Руководитель дошкольной образовательной
A3: Рахматуллин Р.Р. | H3: организации
E6: Примерное 10-дневное меню
E7: для организации питания детей в дошкольных учреждениях
E8: с 8-10,5 - часовым пребыванием от 1 года до 3 лет
A10: День 1 - ый
A11: Наименование блюд и | C11: Масса | D11: Кол - во | E11: Кол - во | F11: Пищевые вещества | I11: Энергетическая | J11: С,мг | K11: Сборник
A12: продуктов | C12: порции | D12: (в гр ) | E12: (в гр ) | I12: ценность | K12: рецептур
D13: брутто | E13: нетто | F13: белки | G13: жиры | H13: угл-ды | I13: Ккал
A15: Каша "Дружба" молочная с маслом сливочным | C15: 140/3 | F15: 4.22 | G15: 4.92 | H15: 23.38 | I15: 155.56 | J15: 0.67 | K15: ТТК №7Д
B16: Крупа рисовая | D16: 10 | E16: 10
B17: Крупа пшенная | D17: 7.5 | E17: 7.5
B18: Молоко | D18: 75 | E18: 75
B19: Вода | D19: 48 | E19: 48
B20: Сахар | D20: 2 | E20: 2
B21: соль иодированная | D21: 0.4 | E21: 0.4
B22: Масло сливочное | D22: 3 | E22: 3
A23: Кофейный напиток с молоком | C23: 180 | F23: 2.85 | G23: 2.41 | H23: 14.35 | I23: 90.54 | J23: 1.17 | K23: №395 Дели2010
B24: Кофейный напиток | D24: 2.50 | E24: 2.50
B25: Сахар | D25: 6.00 | E25: 6.00
B26: Молоко | D26: 90.00 | E26: 90.00
B27: Вода | D27: 108.00 | E27: 108.00
A28: Бутерброд с маслом сливочным | C28: 25/5 | F28: 1.92 | G28: 4.36 | H28: 12.92 | I28: 98.50 | J28: 0.00 | K28: №1 Дели2010
B29: Батон нарезной | D29: 25 | E29: 25
B30: Масло сливочное | D30: 5 | E30: 5
A31: Итого: | C31: 353 | F31: =F15+F23+F28 -> 8.99 | G31: =G15+G23+G28 -> 11.69 | H31: 50.66 | I31: 344.60 | J31: =J15+J23+J28 -> 1.84
B32: 2 - ой ЗАВТРАК
A33: Сок (или нектар) | C33: 200 | D33: 200 | E33: 200 | F33: 1.00 | G33: 0.00 | H33: 20.20 | I33: 84.44 | J33: 4.00 | K33: №418 сб дошк 2016
A34: в ассортименте
A35: Итого: | C35: 200 | F35: =F33 -> 1.00 | G35: =G33 -> 0.00 | H35: 20.20 | I35: 84.44 | J35: 4.00
B36: ОБЕД
A37: Помидоры свежие (порционно) | C37: 30 | F37: 0.33 | G37: 0.06 | H37: 1.14 | I37: 7.20 | J37: 7.50 | K37: №71 сб шк 2017
B38: помидоры свежие | D38: 30.60 | E38: 30.00
A39: Суп вермишелевый с картофелем и с мясными фрикадельками | C39: 150/10 | F39: 3.95 | G39: 3.56 | H39: 10.51 | I39: 97.15 | J39: 5.19 | K39: №88 СБ дошк 2016
B40: говядина б/к (котлетное мясо) | D40: 11.97 | E40: 11.4
B41: или фарш говяжий | D41: 11.97 | E41: 11.4
B42: Лук репчатый | D42: 1.19 | E42: 1
B43: Яйцо | D43: 0.96 | E43: 0.8
B44: Вода для фарша | D44: 1 | E44: 1
B45: соль иодированная | D45: 0.1 | E45: 0.1
B46: масса полуфабриката фрикаделек | E46: 14.3
B47: масса готовых фрикаделек | E47: 10
B48: Картофель | D48: 59.90 | E48: 45.00
B49: Морковь | D49: 7.50 | E49: 6.00
B50: Лук репчатый | D50: 7.14 | E50: 6.00
B51: вермишель | D51: 6.00 | E51: 6.00
B52: Масло растительное | D52: 3.00 | E52: 3.00
B53: соль иодированная | D53: 0.50 | E53: 0.50
B54: вода | D54: 114.00 | E54: 114.00
A55: Котлеты рубленные из говядины | C55: 50 | F55: 8.42 | G55: 9.35 | H55: 8.22 | I55: 150.76 | J55: 0.60 | K55: СБ дошкольн. №299, 2016
B56: говядина (котлетное мясо б/к) | D56: 36.57 | E56: 35
B57: или фарш говяжий | D57: 36.57 | E57: 35
B58: лук репчатый | D58: 10.4 | E58: 8.75
B59: Хлеб пшеничный | D59: 8.13 | E59: 8.13
B60: Вода | D60: 5.2 | E60: 5.2
B61: сухари панировочные | D61: 5 | E61: 5
B62: соль иодированная | D62: 0.4 | E62: 0.4
B63: масса полуфабриката | E63: 60
B64: Масло растительное | D64: 0.60 | E64: 0.60
A65: Капуста тушеная | C65: 120 | F65: 2.45 | G65: 4.42 | H65: 9.47 | I65: 92.40 | J65: 20.50 | K65: № 354 сб дошк 2016
B66: капуста свежая | D66: 172.00 | E66: 137.52
B67: масло растительное | D67: 4.20 | E67: 4.20
B68: морковь | D68: 3.00 | E68: 2.40
B69: лук репчатый | D69: 5.76 | E69: 4.80
B70: томатная паста | D70: 2.88 | E70: 2.88
B71: мука пшеничная | D71: 1.44 | E71: 1.44
B72: сахар | D72: 0.90 | E72: 0.90
B73: соль йодированная | D73: 0.45 | E73: 0.45
A74: Напиток из сухофруктов | C74: 150 | F74: 0.50 | G74: 0.07 | H74: 24.01 | I74: 100 | J74: 1 | K74: №394 Сб дошк 2016
B75: сухофрукты | D75: 12.75 | E75: 12.50
B76: Сахар | D76: 5.00 | E76: 5.00
B77: вода | D77: 152.00 | E77: 152.00
A78: Хлеб пшеничный | C78: 20 | D78: 20.0 | E78: 20.0 | F78: 1.52 | G78: 0.16 | H78: 9.84 | I78: 47.00 | K78: табл 6 стр 134,Дели + 2012
A79: Хлеб ржаной | C79: 30 | D79: 30 | E79: 30 | F79: 1.98 | G79: 0.36 | H79: 11.88 | I79: 59.40 | K79: табл 6 стр 144,Дели + 2012
A80: Итого: | C80: 560.00 | F80: =F37+F39+F55+F65+F74+F78+F79 -> 19.15 | G80: =G37+G39+G55+G65+G74+G78+G79 -> 17.97 | H80: 75.07 | I80: =I37+I39+I55+I65+I74+I78+I79 -> 553.51 | J80: 34.33
B81: ПОЛДНИК
A82: Кисломолочный напиток | C82: 180 | F82: 5.22 | G82: 4.50 | H82: 7.20 | I82: 90.00 | J82: 1.26 | K82: №420 Сб дошк 2016
A83: (Кефир,ряженка,катык, йогурт/напиток ацидофильный) | B83: кисломолочный напиток | D83: 185 | E83: 180
A84: Запеканка творожная с повидлом | C84: 110/20 | F84: 19.33 | G84: 16.98 | H84: 21.93 | I84: 317.80 | J84: 0.61 | K84: № 251 сб дошк 2016
B85: Творог | D85: 103.20 | E85: 101.20
B86: крупа манная | D86: 6.60 | E86: 6.60
B87: Яйцо | D87: 5.28 | E87: 4.40
B88: Сахар | D88: 8.80 | E88: 8.80
B89: Сметана | D89: 4.40 | E89: 4.40
B90: Масло сливочное | D90: 4.40 | E90: 4.40
B91: Сухари панировочные | D91: 4.40 | E91: 4.40
B92: соль иодированная | D92: 0.55 | E92: 0.55
B93: повидло | D93: 20.00 | E93: 20.00
A94: Чай с сахаром | C94: 150/5 | F94: 0.06 | G94: 0.02 | H94: 5.01 | I94: 19.95 | J94: 0.03 | K94: №392 Дели2010
B95: чай весовой | D95: 0.4 | E95: 0.4
B96: Сахар | D96: 5 | E96: 5
B97: Вода | D97: 150 | E97: 150
A99: Итого: | C99: 465.00 | F99: =F82+F84+F94 -> 24.61 | G99: =G82+G84+G94 -> 21.50 | H99: 34.14 | I99: 427.75 | J99: 1.90
A100: ВСЕГО: | C100: =C31+C35+C80+C99 -> 1578.00 | F100: =F31+F35+F80+F99 -> 53.75 | G100: =G31+G35+G80+G99 -> 51.15 | H100: =H31+H35+H80+H99 -> 180.06 | I100: =I31+I35+I80+I99 -> 1410.30 | J100: =J31+J35+J80+J99 -> 42.07
A102: День 2- ой
A103: Наименование блюд и | C103: Масса | D103: Кол - во | E103: Кол - во | F103: Пищевые вещества | I103: Энергетическая | J103: С,мг | K103: Сборник
A104: продуктов | C104: порции | D104: (в гр ) | E104: (в гр ) | I104: ценность | K104: рецептур
D105: брутто | E105: нетто | F105: белки | G105: жиры | H105: угл-ды | I105: Ккал
B106: ЗАВТРАК
A107: Каша полбяная молочная с маслом сливочным | C107: 140/3 | F107: 3.76 | G107: 6.13 | H107: 22.96 | I107: 162.00 | J107: 0.00 | K107: ТТК №1Д
B108: Крупа полбяная | D108: 18 | E108: 18
B109: Молоко | D109: 75 | E109: 75
B110: вода | D110: 48 | E110: 48
B111: Сахар | D111: 2 | E111: 2
B112: соль иодированная | D112: 0.4 | E112: 0.4
B113: Масло сливочное | D113: 3 | E113: 3
A114: Чай с молоком,сахаром | C114: 180/6 | F114: 2.67 | G114: 2.27 | H114: 10.34 | I114: 72.70 | J114: 1.20 | K114: № 413 сб дошк 2016
B115: чай весовой | D115: 0.45 | E115: 0.45
B116: Сахар | D116: 6 | E116: 6
B117: Молоко | D117: 92 | E117: 90
B118: Вода | D118: 90 | E118: 90
A119: Бутерброд с сыром, маслом сливочным | C119: 25/5/5 | F119: 3.23 | G119: 5.69 | H119: 12.92 | I119: 115.67 | J119: 0.04 | K119: №3 сб дошк2016
B120: Батон нарезной | D120: 25 | E120: 25
B121: Сыр | D121: 5.1 | E121: 5
B122: Масло сливочное | D122: 5 | E122: 5
A123: Итого: | C123: 364 | F123: =F107+F114+F119 -> 9.66 | G123: =G107+G114+G119 -> 14.08 | H123: 46.22 | I123: 350.37 | J123: 1.23
B124: 2 - ой ЗАВТРАК
A125: Фрукты свежие | C125: 100 | D125: 100 | E125: 100 | F125: 0.40 | G125: 0.40 | H125: 9.80 | I125: 47.00 | J125: 10.00 | K125: №386 СБ
A126: (яблоки,или апельсин, или банан,или мандарин ) | K126: дошк.2016
A127: Итого: | C127: 100 | F127: =F125 -> 0.40 | G127: =G125 -> 0.40 | H127: 9.80 | I127: 47.00 | J127: 10.00
B128: ОБЕД
A129: Салат из картофеля с солеными огурцами | C129: 40 | F129: 0.49 | G129: 3.14 | H129: 3.58 | I129: 44.56 | J129: 2.41 | K129: №23 сб дошк2016
B130: огурцы соленые | D130: 21.84 | E130: 12.00
B131: картофель | D131: 21.92 | E131: 16.00
B132: морковь | D132: 10.24 | E132: 8.00
B133: лук репчатый | D133: 2.40 | E133: 2.00
B134: масло растительное | D134: 2.00 | E134: 2.00
A135: Борщ со свежей капустой, картофелем на курином бульоне,с куриными фрикадельками,со сметаной | C135: 150/10/10 | F135: 3.22 | G135: 5.71 | H135: 7.80 | I135: 98.94 | J135: 6.45 | K135: №110,сбшк2004
B136: Капуста свежая | D136: 15.0 | E136: 12.0
B137: Картофель | D137: 15.96 | E137: 12.0
B138: Морковь | D138: 7.5 | E138: 6.0
B139: Лук репчатый | D139: 7.14 | E139: 6.0
B140: Свекла | D140: 30.72 | E140: 24.0
B141: Сахар | D141: 1.8 | E141: 1.8
B142: Масло растительное | D142: 3.0 | E142: 3.0
B143: соль иодированная | D143: 0.65 | E143: 0.7
B144: Бульон | D144: 120 | E144: 120.0
B145: цыплята-бройлер с/м | D145: 17.56 | E145: 11.4
B146: или фарш куриный | D146: 11.97 | E146: 11.4
B147: Лук репчатый | D147: 1.2 | E147: 1
B148: Яйцо | D148: 0.96 | E148: 0.8
B149: Вода для фарша | D149: 1 | E149: 1
B150: соль иодированная | D150: 0.1 | E150: 0.1
B151: Масса полуфабриката | E151: 14.3
B152: масса готовых фрикаделек | E152: 10
B153: Сметана | D153: 10.0 | E153: 10.0
A154: Фрикадельки куриные в молочном соусе | C154: 40/20 | F154: 5.99 | G154: 7.13 | H154: 5.16 | I154: 109.04 | J154: 0.47 | K154: № 325 сб дошк 2016
B155: цыплята - бройлеры с/м | D155: 45.6 | E155: 29.3
B156: или фарш куриный | D156: 30.77 | E156: 29.3
B157: Хлеб пшеничный | D157: 7.3 | E157: 7.3
B158: Вода | D158: 9.0 | E158: 9.0
B159: соль иодированная | D159: 0.3 | E159: 0.3
B160: Масса полуфабриката | E160: 46.0
B161: Масло растительное | D161: 0.6 | E161: 0.6
B162: Соус молочный: | E162: 20.0
B163: Молоко | D163: 10.0 | E163: 10.0
B164: Масло сливочное | D164: 1.04 | E164: 1.0
B165: Мука пшеничная | D165: 1.04 | E165: 1.0
B166: Вода | D166: 10.0 | E166: 10.0
B167: Сахар | D167: 0.2 | E167: 0.2
B168: соль иодированная | D168: 0.2 | E168: 0.2
A169: Макаронные изделия отварные с маслом сливочным | C169: 110/3 | F169: 4.17 | G169: 2.66 | H169: 23.45 | I169: 134.38 | J169: 0.00 | K169: №219 Сб дошк.2016
B170: макаронные изделия | D170: 38.5 | E170: 38.5
B171: вода | D171: 231.0 | E171: 231.0
B172: соль иодированная | D172: 0.45 | E172: 0.45
B173: масло сливочное | D173: 3 | E173: 3
A174: Кисель | C174: 150 | F174: 0.45 | G174: 0.08 | H174: 22.65 | I174: 92.70 | J174: 0.83 | K174: №648 сбшк2004
B175: Кисель-концентрат | D175: 17.5 | E175: 17.5
B176: Сахар | D176: 5 | E176: 5
B177: вода | D177: 150 | E177: 150
A178: Хлеб пшеничный | C178: 20 | D178: 20.00 | E178: 20.00 | F178: 1.52 | G178: 0.16 | H178: 9.84 | I178: 47.00 | K178: табл 6 стр 134,Дели + 2012
A179: Хлеб ржаной | C179: 30 | D179: 30 | E179: 30 | F179: 1.98 | G179: 0.36 | H179: 11.88 | I179: 59.40 | K179: табл 6 стр 144,Дели + 2012
A180: Итого: | C180: 583 | F180: =F129+F135+F154+F169+F174+F178+F179 -> 17.82 | G180: =G129+G135+G154+G169+G174+G178+G179 -> 19.24 | H180: 84.36 | I180: 586.02 | J180: 10.16
B181: ПОЛДНИК
A182: Молоко кипяченое | C182: 180 | F182: 4.83 | G182: 4.50 | H182: 8.00 | I182: 89.17 | J182: 2.16 | K182: №419 Сб дошк 2016
A183: (молоко) | B183: молоко | D183: 189 | E183: 180
A184: Булочка дорожная | C184: 50 | F184: 3.39 | G184: 6.98 | H184: 21.07 | I184: 160.50 | K184: №453 сб дошк2016
B185: Мука пшеничная | D185: 30.50 | E185: 30.00
B186: мука пшеничная на подпыл | D186: 1.00 | E186: 1.00
B187: Сахар | D187: 6.00 | E187: 6.00
B188: Масло сливочное | D188: 6.50 | E188: 6.50
B189: соль иодированная | D189: 0.30 | E189: 0.30
B190: дрожжи сухие | D190: 0.20 | E190: 0.20
B191: вода | D191: 15.30 | E191: 15.30
B192: масса полуфабриката | E192: 57.00
B193: для крошки:
B194: мука пшеничная | D194: 1.20 | E194: 1.20
B195: масло сливочное | D195: 1.00 | E195: 1.00
B196: масса крошки | E196: 2.00
B197: масло растительное для смазки изделй | D197: 1.00 | E197: 1.00
A198: Чай с сахаром и лимоном | C198: 150/5/5 | F198: 0.10 | G198: 0.02 | H198: 5.18 | I198: 21.89 | J198: 2.24 | K198: №393 Дели2010
B199: чай весовой | D199: 0.4 | E199: 0.4
B200: Сахар | D200: 5 | E200: 5
B201: лимон | D201: 5.55 | E201: 5
B202: Вода | D202: 150.0 | E202: 150.0
A203: Итого: | C203: 390 | F203: =F182+F184+F198 -> 8.32 | G203: =G182+G184+G198 -> 11.50 | H203: 34.25 | I203: 271.56 | J203: 4.40
A204: ВСЕГО: | C204: =C123+C127+C180+C203 -> 1437.00 | F204: =F123+F127+F180+F203 -> 36.21 | G204: =G123+G127+G180+G203 -> 45.22 | H204: =H123+H127+H180+H203 -> 174.63 | I204: =I123+I127+I180+I203 -> 1254.95 | J204: =J123+J127+J180+J203 -> 25.79
A206: День 3 - ий
A207: Наименование блюд и | C207: Масса | D207: Кол - во | E207: Кол - во | F207: Пищевые вещества | I207: Энергетическая | J207: С,мг | K207: Сборник
... 769 more rows

Sheet МЕНЮ - РАСК 3-7
A1: Утверждаю | H1: Согласовано
A2: Директор ООО"АБК - Пэймент" | H2: Руководитель дошкольной образовательной
A3: Рахматуллин Р.Р. | H3: организации
C8: Примерное 10-дневное меню
C9: для организации питания детей в дошкольных учреждениях
C10: с 8-10,5 - часовым пребыванием от 3 до 7 лет
A12: День 1 - ый
A13: Наименование блюд и | C13: Масса | D13: Кол - во | E13: Кол - во | F13: Пищевые вещества | I13: Энергетическая | J13: С | K13: Сборник рецептур
A14: продуктов | C14: порции | D14: (в гр ) | E14: (в гр ) | I14: ценность
D15: брутто | E15: нетто | F15: белки | G15: жиры | H15: угл-ды | I15: Ккал
B16: ЗАВТРАК
A17: Каша "Дружба" молочная с маслом сливочным | C17: 180/5 | F17: 5.44 | G17: 7.17 | H17: 30.09 | I17: 207.60 | J17: 0.86 | K17: ТТК №7Д
B18: Крупа рисовая | D18: 13.50 | E18: 13.50
B19: Крупа пшенная | D19: 10.00 | E19: 10.00
B20: Молоко | D20: 90.00 | E20: 90.00
B21: Вода | D21: 68.00 | E21: 68.00
B22: Сахар | D22: 2.50 | E22: 2.50
B23: соль иодированная | D23: 0.50 | E23: 0.50
B24: Масло сливочное | D24: 5 | E24: 5
A25: Кофейный напиток с молоком | C25: 180 | F25: 2.85 | G25: 2.41 | H25: 14.35 | I25: 90.54 | J25: 1.17 | K25: №395 Дели2010
B26: Кофейный напиток | D26: 2.50 | E26: 2.50
B27: Сахар | D27: 6.00 | E27: 6.00
B28: Молоко | D28: 90.00 | E28: 90.00
B29: Вода | D29: 108.00 | E29: 108.00
A30: Бутерброд с маслом сливочным | C30: 30/5 | F30: 2.29 | G30: 4.50 | H30: 15.49 | I30: 111.60 | J30: 0.00 | K30: №1 Дели2010
B31: Батон нарезной | D31: 30.00 | E31: 30.00
B32: Масло сливочное | D32: 5.00 | E32: 5.00
A33: Итого: | C33: 400 | F33: =F17+F25+F30 -> 10.58 | G33: =G17+G25+G30 -> 14.08 | H33: 59.93 | I33: 409.74 | J33: 2.03
B34: 2 - ой ЗАВТРАК
A35: Сок (или нектар) | C35: 180 | D35: 180.00 | E35: 180.00 | F35: 0.90 | H35: 18.18 | I35: 76.32 | J35: 3.60 | K35: №418 сб дошк 2016
A36: в ассортименте
A37: Итого: | C37: 180 | F37: =F35 -> 0.90 | G37: =G35 -> 0.00 | H37: 18.18 | I37: 76.32 | J37: 3.60
B38: ОБЕД
A39: Помидоры свежие (порционно) | C39: 50 | F39: 0.55 | G39: 0.10 | H39: 1.90 | I39: 12.00 | J39: 12.50 | K39: №71 сб шк 2017
B40: помидоры свежие | D40: 51.00 | E40: 50.00
A41: Суп вермишелевый с картофелем и с мясными фрикадельками | C41: 180/15 | F41: 4.93 | G41: 3.80 | H41: 12.68 | I41: 114.54 | J41: 6.01 | K41: №88,сб дошк2016
B42: говядина б/к (котлетное мясо) | D42: 17.85 | E42: 17.1
B43: или фарш говяжий | D43: 17.85 | E43: 17.1
B44: Лук репчатый | D44: 1.79 | E44: 1.5
B45: Яйцо | D45: 1.44 | E45: 1.2
B46: Вода для фарша | D46: 1.5 | E46: 1.5
B47: соль иодированная | D47: 0.15 | E47: 0.15
B48: Масса полуфабриката | E48: 21.5
B49: масса готовых фрикаделек | E49: 15
B50: Картофель | D50: 79.80 | E50: 60.00
B51: Морковь | D51: 10.00 | E51: 8.00
B52: Лук репчатый | D52: 9.52 | E52: 8.00
B53: вермишель | D53: 8.00 | E53: 8.00
B54: Масло растительное | D54: 4.00 | E54: 4.00
B55: соль иодированная | D55: 0.70 | E55: 0.70
B56: Вода | D56: 132.00 | E56: 132.00
A57: Котлеты рубленые из говядины | C57: 70 | F57: 11.79 | G57: 13.09 | H57: 11.51 | I57: 211.0625103 | J57: 0.84 | K57: СБ дошкольн. №299, 2016
B58: говядина б/к (котлетное мясо) | D58: 51.16 | E58: 49
B59: или фарш говяжий | D59: 51.16 | E59: 49
B60: Лук репчатый | D60: 14.64 | E60: 12.3
B61: Хлеб пшеничный | D61: 11 | E61: 11
B62: Вода | D62: 14.7 | E62: 14.7
B63: Сухари панировочные | D63: 7.00 | E63: 7.00
B64: соль иодированная | D64: 0.7 | E64: 0.7
B65: масса полуфабриката | E65: 84
B66: масло растительное | D66: 1 | E66: 1
A67: Капуста тушеная | C67: 130 | F67: 2.65 | G67: 4.78 | H67: 10.26 | I67: 100.10 | J67: 22.20 | K67: № 303 сб шк 2017
B68: капуста свежая | D68: 186.30 | E68: 149.00
B69: масло растительное | D69: 4.55 | E69: 4.55
B70: морковь | D70: 3.25 | E70: 2.60
B71: лук репчатый | D71: 6.19 | E71: 5.20
B72: томатная паста | D72: 3.12 | E72: 3.12
B73: мука пшеничная | D73: 1.56 | E73: 1.56
B74: сахар | D74: 1.00 | E74: 1.00
B75: соль йодированная | D75: 0.50 | E75: 0.50
A76: Напиток из сухофруктов | C76: 180 | F76: 0.60 | G76: 0.08 | H76: 28.81 | I76: 119.52 | J76: 1 | K76: №394 Сб дошк 2016
B77: сухофрукты | D77: 15.30 | E77: 15.00
B78: Сахар | D78: 6.00 | E78: 6.00
B79: вода | D79: 183.00 | E79: 183.00
A80: Хлеб пшеничный | C80: 20 | D80: 20.0 | E80: 20.0 | F80: 1.52 | G80: 0.16 | H80: 9.84 | I80: 47.00 | K80: табл 6 стр 134,Дели + 2012
A81: Хлеб ржаной | C81: 35 | D81: 35.00 | E81: 35.00 | F81: 2.31 | G81: 0.42 | H81: 13.86 | I81: 69.30 | K81: табл 6 стр 144,Дели + 2012
A82: Итого: | C82: 680 | F82: =F39+F41+F57+F67+F76+F80+F81 -> 24.35 | G82: =G39+G41+G57+G67+G76+G80+G81 -> 22.43 | H82: 88.86 | I82: 673.52 | J82: 42.21
B83: ПОЛДНИК
A84: Кисломолочный напиток | C84: 200 | F84: 5.80 | G84: 5.00 | H84: 8.00 | I84: 100.00 | J84: 1.40 | K84: №420 СБ дошк 2016
A85: (Кефир,ряженка,катык,йогурт/ напиток ацидофильный) | B85: кисломолочный напиток | D85: 205.00 | E85: 200.00
A86: Запеканка творожная с повидлом | C86: 130/20 | F86: 22.82 | G86: 20.06 | H86: 25.22 | I86: 372.60 | J86: 0.66 | K86: №251, сбдошк 2016
B87: Творог | D87: 121.55 | E87: 119.20
B88: Крупа манная | D88: 7.80 | E88: 7.80
B89: Яйцо | D89: 6.50 | E89: 5.42
B90: Сахар | D90: 10.40 | E90: 10.40
B91: Сметана | D91: 5.20 | E91: 5.20
B92: Масло сливочное | D92: 5.20 | E92: 5.20
B93: Сухари панировочные | D93: 5.20 | E93: 5.20
B94: соль иодированная | D94: 0.65 | E94: 0.65
B95: повидло | D95: 20.00 | E95: 20.00
A96: Чай с сахаром | C96: 180/6 | F96: 0.06 | G96: 0.02 | H96: 6.01 | I96: 23.94 | J96: 0.03 | K96: № 392 Дели 2010
B97: чай весовой | D97: 0.45 | E97: 0.45
B98: сахар | D98: 6.00 | E98: 6.00
B99: Вода | D99: 180.00 | E99: 180.00
A100: Итого: | C100: 536 | F100: =F84+F86+F96 -> 28.68 | G100: =G84+G86+G96 -> 25.08 | H100: 39.24 | I100: 496.54 | J100: 2.09
A101: ВСЕГО: | C101: =C33+C37+C82+C100 -> 1796.00 | F101: =F33+F37+F82+F100 -> 64.51 | G101: =G33+G37+G82+G100 -> 61.59 | H101: =H33+H37+H82+H100 -> 206.21 | I101: =I33+I37+I82+I100 -> 1656.12 | J101: =J33+J37+J82+J100 -> 49.93
A103: День 2- ой
A104: Наименование блюд и | C104: Масса | D104: Кол - во | E104: Кол - во | F104: Пищевые вещества | I104: Энергетическая | J104: С | K104: Сборник
A105: продуктов | C105: порции | D105: (в гр ) | E105: (в гр ) | I105: ценность | K105: рецептур
D106: брутто | E106: нетто | F106: белки | G106: жиры | H106: угл-ды | I106: Ккал
B107: ЗАВТРАК
A108: Каша полбяная молочная с маслом сливочным | C108: 180/3 | F108: 4.83 | G108: 7.26 | H108: 29.50 | I108: 202.64 | J108: 0.00 | K108: ТТК №1Д
B109: Крупа полбяная | D109: 22.50 | E109: 22.50
B110: Молоко | D110: 90.00 | E110: 90.00
B111: вода | D111: 68.00 | E111: 68.00
B112: Сахар | D112: 2.50 | E112: 2.50
B113: соль иодированная | D113: 0.50 | E113: 0.50
B114: Масло сливочное | D114: 3.00 | E114: 3.00
A115: Чай с молоком,сахаром | C115: 180/6 | F115: 2.67 | G115: 2.27 | H115: 10.34 | I115: 72.70 | J115: 1.20 | K115: № 413 сб дошк 2016
B116: чай весовой | D116: 0.45 | E116: 0.45
B117: Сахар | D117: 6 | E117: 6
B118: Молоко | D118: 92 | E118: 90
B119: Вода | D119: 90 | E119: 90
A120: Бутерброд с сыром, маслом сливочным | C120: 30/5/5 | F120: 3.61 | G120: 5.83 | H120: 15.49 | I120: 128.77 | J120: 0.04 | K120: №3 сб дошк2016
B121: Батон нарезной | D121: 30.00 | E121: 30.00
B122: Сыр | D122: 5.10 | E122: 5.00
B123: Масло сливочное | D123: 5.00 | E123: 5.00
A124: Итого: | C124: 409 | F124: =F108+F115+F120 -> 11.11 | G124: =G108+G115+G120 -> 15.36 | H124: 55.34 | I124: 404.11 | J124: 1.23
B125: 2 - ой ЗАВТРАК
A126: Фрукты свежие | C126: 100 | D126: 100 | E126: 100 | F126: 0.40 | G126: 0.40 | H126: 9.80 | I126: 47.00 | J126: 10.00 | K126: №386 СБ
A127: (яблоки,или апельсин, или банан,или мандарин ) | K127: дошк.2016
A128: Итого: | C128: 100 | F128: =F126 -> 0.40 | G128: =G126 -> 0.40 | H128: 9.80 | I128: 47.00 | J128: 10.00
B129: ОБЕД
A130: Салат из картофеля с солеными огурцами | C130: 60 | F130: 0.73 | G130: 4.71 | H130: 5.38 | I130: 66.84 | J130: 3.62 | K130: №23 сб дошк2016
B131: огурцы соленые | D131: 32.76 | E131: 18.00
B132: картофель | D132: 32.90 | E132: 24.00
B133: морковь | D133: 15.36 | E133: 12.00
B134: лук репчатый | D134: 3.60 | E134: 3.00
B135: масло растительное | D135: 3.00 | E135: 3.00
A136: Борщ со свежей капустой, картофелем на курином бульоне, с куриными фрикадельками,со сметаной | C136: 180/10/10 | F136: 2.96 | G136: 6.30 | H136: 9.11 | I136: 111.39 | J136: 7.73 | K136: №110, сб шк2004
B137: Капуста свежая | D137: 20.00 | E137: 16.00
B138: Картофель | D138: 21.28 | E138: 16.00
B139: Морковь | D139: 12.50 | E139: 10.00
B140: Лук репчатый | D140: 9.52 | E140: 8.00
B141: Свекла | D141: 41.00 | E141: 32.00
B142: Сахар | D142: 2.40 | E142: 2.40
B143: Томат-паста | D143: 1.00 | E143: 1.00
B144: Масло растительное | D144: 4.00 | E144: 4.00
B145: соль иодированная | D145: 0.80 | E145: 0.80
B146: Бульон | D146: 140.00 | E146: 140.00
B147: цыплята-бройлер с/м | D147: 17.56 | E147: 11.4
B148: или фарш куриный | D148: 11.97 | E148: 11.4
B149: Лук репчатый | D149: 1.2 | E149: 1
B150: Яйцо | D150: 0.96 | E150: 0.8
B151: Вода для фарша | D151: 1 | E151: 1
B152: соль иодированная | D152: 0.1 | E152: 0.1
B153: Масса полуфабриката | E153: 14.3
B154: масса готовых фрикаделек | E154: 10
B155: Сметана | D155: 10.00 | E155: 10.00
A156: Фрикадельки куриные в молочном соусе | C156: 50/25 | F156: 7.49 | G156: 8.92 | H156: 6.45 | I156: 136.30 | J156: 0.59 | K156: № 325 сб дошк 2016
B157: цыплята - бройлеры с/м | D157: 57.00 | E157: 37.00
B158: или фарш куриный | E158: 37.00
B159: Хлеб пшеничный | D159: 9.00 | E159: 9.00
B160: Вода | D160: 12.00 | E160: 12.00
B161: соль иодированная | D161: 0.35 | E161: 0.35
B162: Масса полуфабриката | E162: 57.00
B163: Масло растительное | D163: 0.70 | E163: 0.70
B164: Соус молочный: | E164: 25.00
B165: Молоко | D165: 12.50 | E165: 12.50
B166: Масло сливочное | D166: 1.30 | E166: 1.30
B167: Мука пшеничная | D167: 1.3 | E167: 1.3
B168: Вода | D168: 12.50 | E168: 12.5
B169: Сахар | D169: 0.30 | E169: 0.3
B170: соль иодированная | D170: 0.3 | E170: 0.3
A171: Макаронные изделия отварные с маслом сливочным | C171: 130/3 | F171: 4.93 | G171: 2.75 | H171: 27.70 | I171: 155.22 | J171: 0.00 | K171: №219 Сб дошк 2016
B172: макаронные изделия | D172: 45.5 | E172: 45.50
B173: вода | D173: 275.0 | E173: 275.0
B174: соль иодированная | D174: 0.5 | E174: 0.5
B175: Масло сливочное | D175: 3.0 | E175: 3.0
A176: Кисель | C176: 180 | F176: 0.54 | G176: 0.09 | H176: 27.18 | I176: 111.24 | J176: 0.99 | K176: № 648, сб шк2004
B177: Кисель-концентрат | D177: 21.0 | E177: 21.0
B178: Сахар | D178: 6.0 | E178: 6.0
B179: вода | D179: 180.0 | E179: 180.0
A180: Хлеб пшеничный | C180: 20 | D180: 20.00 | E180: 20.00 | F180: 1.52 | G180: 0.16 | H180: 9.84 | I180: 47.00 | K180: табл 6 стр 134,Дели + 2012
A181: Хлеб ржаной | C181: 35 | D181: 35.00 | E181: 35.00 | F181: 2.31 | G181: 0.42 | H181: 13.86 | I181: 69.30 | K181: табл 6 стр 144,Дели + 2012
A182: Итого: | C182: 703 | F182: =F130+F136+F156+F171+F176+F180+F181 -> 20.48 | G182: =G130+G136+G156+G171+G176+G180+G181 -> 23.34 | H182: 99.52 | I182: 697.29 | J182: 12.93
B183: ПОЛДНИК
A184: Молоко кипяченое | C184: 200 | F184: 5.80 | G184: 5.00 | H184: 9.60 | I184: 107.00 | J184: 2.60 | K184: №419 СБ дошк 2016
A185: (молоко) | B185: молоко | D185: 210.00 | E185: 200.00
A186: Булочка дорожная | C186: 75 | F186: 5.09 | G186: 10.47 | H186: 31.61 | I186: 240.75 | K186: №453 сб дошк2016
B187: Мука пшеничная | D187: 45.50 | E187: 45.00
B188: мука пшеничная на подпыл | D188: 1.50 | E188: 1.50
B189: Сахар | D189: 9.00 | E189: 9.00
B190: Масло сливочное | D190: 9.75 | E190: 9.75
B191: соль иодированная | D191: 0.45 | E191: 0.45
B192: дрожжи сухие | D192: 0.30 | E192: 0.30
B193: вода | D193: 23.00 | E193: 23.00
B194: масса полуфабриката | E194: 85.50
B195: для крошки:
B196: мука пшеничная | D196: 1.80 | E196: 1.80
B197: масло сливочное | D197: 1.50 | E197: 1.50
B198: масса крошки | E198: 3.00
B199: масло растительное для смазки изделй | D199: 1.00 | E199: 1.00
A200: Чай с сахаром и лимоном | C200: 180/6/7 | F200: 0.12 | G200: 0.02 | H200: 6.23 | I200: 26.12 | J200: 2.83 | K200: № 393 Дели2010
B201: чай весовой | D201: 0.45 | E201: 0.45
B202: Сахар | D202: 6.00 | E202: 6.00
B203: лимон | D203: 8.00 | E203: 7.00
B204: Вода | D204: 180.00 | E204: 180.00
A205: Итого: | C205: 468 | F205: =F184+F186+F200 -> 11.01 | G205: =G184+G186+G200 -> 15.49 | H205: 47.43 | I205: 373.87 | J205: 5.43
A206: ВСЕГО: | C206: =C124+C128+C182+C205 -> 1680 | F206: =F124+F128+F182+F205 -> 42.99 | G206: =G124+G128+G182+G205 -> 54.59 | H206: =H124+H128+H182+H205 -> 212.09 | I206: =I124+I128+I182+I205 -> 1522.27 | J206: =J124+J128+J182+J205 -> 29.59
... 775 more rows
